fUSD/lending_fUSD_20240412
["ID","MTS","AMOUNT","RATE_DAILY","PERIOD"]
[322339783,1712956366025,-3128.79,0.00049589,120]
[322339784,1712956366036,-2327.1,0.00049589,120]
[322339785,1712956366046,-18182.37,0.00049589,120]
[322339786,1712956366057,-6035.47,0.00049589,120]
[322339787,1712956366067,-2577.26,0.00049589,120]
[322339788,1712956366078,-500.0,0.00049589,7]
[322339789,1712956366089,-1143.56,0.00049589,120]
[322339790,1712956366100,-4212.38,0.00049589,120]
[322339791,1712956366111,-709.5,0.00049589,120]
[322339792,1712956366122,-500.0,0.00049589,120]
[322339793,1712956366133,-1251.78,0.00049589,120]
[322339794,1712956366143,-500.0,0.00049589,120]
[322339795,1712956366153,-1227.56,0.00049589,120]
[322339796,1712956366163,-500.0,0.00049589,120]
[322339797,1712956366173,-962.14,0.00049589,120]
[322339798,1712956366184,-579.98,0.00049589,120]
[322339799,1712956366194,-526.36,0.00049589,120]
[322339800,1712956366204,-500.0,0.00049589,120]
[322339801,1712956366214,-500.0,0.00049589,120]
[322339802,1712956366224,-595.87,0.00049589,2]
[322339803,1712956366234,-500.0,0.00049589,120]
[322339804,1712956366244,-15043.16,0.00049589,120]
[322339805,1712956366255,-500.0,0.00049589,120]
[322339806,1712956366265,-3922.55,0.00049589,120]
[322339807,1712956366275,-500.0,0.00049589,120]
[322339808,1712956366285,-1614.08,0.00049589,120]
[322339809,1712956366295,-500.0,0.00049589,120]
[322339810,1712956366305,-529.92,0.00049589,120]
[322339811,1712956366315,-680.34,0.00049589,120]
[322339812,1712956366326,-5579.77,0.00049589,120]
[322339813,1712956366338,-500.0,0.00049589,120]
[322339814,1712956366350,-500.0,0.00049589,120]
[322339815,1712956366360,-500.0,0.00049589,120]
[322339816,1712956366373,-500.0,0.00049589,120]
[322339817,1712956366384,-500.0,0.00049589,120]
[322339818,1712956366399,-2156.38,0.00049589,120]
[322339819,1712956366414,-500.0,0.00049589,120]
[322339820,1712956366425,-1171.95,0.00049589,120]
[322339821,1712956366436,-500.0,0.00049589,120]
[322339822,1712956366447,-818.6,0.00049589,120]
[322339823,1712956366457,-1005.81,0.00049589,120]
[322339824,1712956366467,-500.0,0.00049589,120]
[322339825,1712956366478,-1566.16,0.00049589,120]
[322339826,1712956366488,-2445.94,0.00049589,120]
[322339827,1712956366498,-1512.58,0.00049589,120]
[322339828,1712956366509,-3625.83,0.00049589,120]
[322339829,1712956366520,-503.05810258,0.00049589,120]
[322339830,1712956366530,-538.96,0.00049589,120]
[322339831,1712956366540,-542.02,0.00049589,120]
[322339832,1712956366955,-1559.05,0.00049589,120]
[322339833,1712956366972,-357.01639722,0.00049589,120]
[322339834,1712956366981,-1365.13,0.00049589,120]
[322339835,1712956366991,-500.0,0.00049589,120]
[322339836,1712956367000,-1937.56,0.00049589,120]
[322339837,1712956367010,-500.0,0.00049589,120]
[322339838,1712956367019,-2496.98,0.00049589,120]
[322339839,1712956367029,-553.72,0.00049589,120]
[322339840,1712956367038,-500.0,0.00049589,120]
[322339841,1712956367048,-1304.68,0.00049589,120]
[322339842,1712956367057,-500.0,0.00049589,120]
[322339843,1712956367067,-500.0,0.00049589,120]
[322339844,1712956367077,-1112.77,0.00049589,120]
[322339845,1712956367086,-500.0,0.00049589,120]
[322339846,1712956367095,-1261.76,0.00049589,120]
[322339847,1712956367105,-500.0,0.00049589,120]
[322339848,1712956367116,-500.0,0.00049589,120]
[322339849,1712956367126,-1175.23,0.00049589,120]
[322339850,1712956367135,-2651.19,0.00049589,120]
[322339851,1712956367145,-653.52,0.00049589,120]
[322339852,1712956367155,-1934.28,0.00049589,21]
[322339853,1712956367165,-500.0,0.00049589,120]
[322339854,1712956367175,-854.38,0.00049589,120]
[322339855,1712956367185,-500.0,0.00049589,120]
[322339856,1712956367195,-1683.6,0.00049589,120]
[322339857,1712956367205,-829.4,0.00049589,120]
[322339858,1712956367223,-500.0,0.00049589,120]
[322339859,1712956367233,-1255.75,0.00049589,120]
[322339860,1712956367243,-500.0,0.00049589,120]
[322339861,1712956367252,-1077.767414,0.0004964,23]
[322339862,1712956367262,-1000.0,0.0004966,23]
[322339863,1712956367271,-1183.01195363,0.0004968,120]
[322339864,1712956367281,-1000.0,0.0004968,23]
[322339865,1712956367290,-150.22032791,0.00049699,120]
[322339866,1712956367300,-158.0,0.000497,2]
[322339867,1712956367310,-1000.0,0.000497,23]
[322339868,1712956367320,-156.61390328,0.00049711,30]
[322339869,1712956367330,-3000.0,0.00049726,120]
[322339870,1712956367342,-500.0,0.00049745,90]
[322339871,1712956367352,-600.0,0.00049745,90]
[322339872,1712956367362,-1254.3616846,0.00049766,2]
[322339873,1712956367373,-4988.2982074,0.00049766,2]
[322339874,1712956367382,-60716.0316208,0.00049766,2]
[322339875,1712956367392,-2022.630464,0.00049766,2]
[322339876,1712956367402,-279.8909902,0.00049766,2]
[322339877,1712956367411,-157.03082932,0.00049767,30]
[322339878,1712956367421,-600.0,0.0004977,3]
[322339879,1712956367431,-300.0,0.0004977,3]
[322339880,1712956367440,-122809.46297676,0.0004977,15]
[322339881,1712956367652,-1757.78081963,0.0004977,15]
[322339882,1712956367673,-191.541576,0.00047772,30]
[322339883,1712956367682,-1159.14122524,0.0004977,15]
[322339884,1712956444598,-1947.90069293,0.00020799,2]
[322339885,1712956444624,-4575.65491624,0.00020897,2]
[322339886,1712956444648,-141476.44439083,0.00020898,2]
[322339887,1712956527934,-160.79,0.00030926,120]
[322339888,1712956527961,-150.0,0.00032877,30]
[322339889,1712956527991,-250.0,0.00034911,115]
[322339890,1712956528016,-173.4,0.00035683,91]
[322339891,1712956528045,-7963.28442849,0.00038964,30]
[322339892,1712956528073,-157.041306,0.00039448,49]
[322339893,1712956528098,-34232.74192991,0.000395,30]
[322339894,1712956528123,-534.58400744,0.000399,48]
[322339895,1712956528150,-534.58400744,0.000399,48]
[322339896,1712956528174,-534.58400744,0.000399,48]
[322339897,1712956528199,-234.41105039,0.00039999,31]
[322339898,1712956528223,-266.37502491,0.0004,30]
[322339899,1712956528248,-210.37183016,0.0004,120]
[322339900,1712956528274,-959.05932493,0.0004,30]
[322339901,1712956528299,-152.3820507,0.00040285,30]
[322339902,1712956528324,-155.80738456,0.00040376,30]
[322339903,1712956528351,-157.041306,0.00040448,50]
[322339904,1712956528375,-534.58400744,0.00040456,50]
[322339905,1712956528401,-155.80738456,0.00040508,30]
[322339906,1712956528429,-152.3820507,0.00040753,30]
[322339907,1712956528460,-155.80738456,0.00040839,30]
[322339908,1712956528759,-154.94402301,0.00041186,30]
[322339909,1712956528785,-157.73922524,0.0004134,30]
[322339910,1712956528809,-157.041306,0.00041448,51]
[322339911,1712956528832,-153.89850043,0.00041687,30]
[322339912,1712956528854,-155.80738456,0.00042065,30]
[322339913,1712956528878,-153.76020685,0.00042156,30]
[322339914,1712956528902,-156.66547669,0.00042412,30]
[322339915,1712956528925,-158.56529917,0.0004243,30]
[322339916,1712956528950,-157.041306,0.00042448,52]
[322339917,1712956528973,-154.52231468,0.00042534,30]
[322339918,1712956528997,-152.3820507,0.00042565,30]
[322339919,1712956529022,-154.94402301,0.000426,30]
[322339920,1712956529044,-1000.0,0.00042627,30]
[322339921,1712956529066,-156.08349195,0.00042634,30]
[322339922,1712956529089,-155.82703613,0.00042651,30]
[322339923,1712956529112,-155.82703613,0.00042702,30]
[322339924,1712956529136,-154.94402301,0.00042843,30]
[322339925,1712956529159,-170.3395982,0.00042879,30]
[322339926,1712956529185,-152.3820507,0.00042884,30]
[322339927,1712956529208,-534.58400744,0.000429,58]
[322339928,1712956529231,-3000.0,0.000429,39]
[322339929,1712956529255,-153.6742473,0.00042908,30]
[322339930,1712956529279,-3000.0,0.0004291,39]
[322339931,1712956529302,-3000.0,0.0004292,39]
[322339932,1712956529325,-3000.0,0.0004293,39]
[322339933,1712956529348,-3000.0,0.0004294,39]
[322339934,1712956529372,-3000.0,0.0004295,40]
[322339935,1712956529405,-3000.0,0.0004296,40]
[322339936,1712956529432,-3000.0,0.0004297,40]
[322339937,1712956529459,-3444.919192,0.0004298,40]
[322339938,1712956529489,-150.0,0.00043219,120]
[322339939,1712956529516,-154.52231468,0.00043358,30]
[322339940,1712956529540,-157.041306,0.00043448,53]
[322339941,1712956529565,-152.3820507,0.00043527,30]
[322339942,1712956529590,-153.6742473,0.00043573,30]
[322339943,1712956529613,-153.6742473,0.00043978,30]
[322339944,1712956529637,-1723.857658,0.00044,44]
[322339945,1712956529662,-154.52231468,0.00044051,30]
[322339946,1712956529690,-1000.0,0.00044312,50]
[322339947,1712956529715,-500.0,0.00044312,30]
[322339948,1712956529743,-172.04483457,0.00044356,60]
[322339949,1712956529772,-157.041306,0.00044448,54]
[322339950,1712956529796,-155.82703613,0.00044506,30]
[322339951,1712956529820,-155.80738456,0.000447,30]
[322339952,1712956529844,-172.04483457,0.00044877,60]
[322339953,1712956529868,-20831.95244941,0.00045,60]
[322339954,1712956529892,-153.6742473,0.00045038,30]
[322339955,1712956529918,-154.94402301,0.00045108,30]
[322339956,1712956529943,-153.89850044,0.00045238,30]
[322339957,1712956529968,-172.04483457,0.00045397,60]
[322339958,1712956529993,-157.041306,0.00045448,55]
[322339959,1712956530018,-154.52231468,0.00045573,30]
[322339960,1712956530042,-153.6742473,0.00045573,30]
[322339961,1712956530067,-163.22695695,0.00045741,30]
[322339962,1712956530091,-156.66547669,0.00045752,30]
[322339963,1712956530114,-153.6742473,0.00045804,30]
[322339964,1712956530138,-154.94402301,0.00045848,30]
[322339965,1712956530162,-152.3820507,0.00045894,30]
[322339966,1712956530186,-172.04483457,0.00045918,60]
[322339967,1712956530210,-156.24543451,0.00045939,30]
[322339968,1712956530235,-1000.0,0.00045998,50]
[322339969,1712956530259,-500.0,0.00045998,30]
[322339970,1712956530284,-500.0,0.00045998,30]
[322339971,1712956530308,-153.6742473,0.00046159,30]
[322339972,1712956530331,-154.03740109,0.00046176,30]
[322339973,1712956530354,-987.84678578,0.00046199,60]
[322339974,1712956530377,-157.17590103,0.00046212,30]
[322339975,1712956530403,-527.0,0.00046438,30]
[322339976,1712956530427,-172.04483457,0.00046438,60]
[322339977,1712956530452,-157.041306,0.00046448,56]
[322339978,1712956530476,-448.39151807,0.00046573,120]
[322339979,1712956530501,-497.70056021,0.00046573,120]
[322339980,1712956530525,-2374.15502948,0.00046574,30]
[322339981,1712956530548,-500.0,0.00046575,31]
[322339982,1712956530577,-500.0,0.00046575,31]
[322339983,1712956530600,-500.0,0.00046575,31]
[322339984,1712956530622,-500.0,0.00046575,31]
[322339985,1712956530646,-289.64,0.00046575,31]
[322339986,1712956530668,-500.0,0.00046575,31]
[322339987,1712956530694,-420.98524169,0.00046575,31]
[322339988,1712956530716,-500.0,0.00046575,31]
[322339989,1712956530740,-500.0,0.00046575,31]
[322339990,1712956530762,-500.0,0.00046575,31]
[322339991,1712956530787,-500.0,0.00046575,31]
[322339992,1712956530811,-400.16965643,0.00046575,31]
[322339993,1712956530833,-500.0,0.00046575,31]
[322339994,1712956530855,-500.0,0.00046575,31]
[322339995,1712956530878,-500.0,0.00046575,31]
[322339996,1712956530902,-500.0,0.00046575,31]
[322339997,1712956530925,-500.0,0.00046575,31]
[322339998,1712956530948,-500.0,0.00046575,31]
[322339999,1712956530970,-500.0,0.00046575,31]
[322340000,1712956530993,-500.0,0.00046575,31]
[322340001,1712956531018,-500.0,0.00046575,31]
[322340002,1712956531044,-500.0,0.00046575,31]
[322340003,1712956531067,-500.0,0.00046575,31]
[322340004,1712956531089,-518.68,0.00046575,31]
[322340005,1712956531115,-500.0,0.00046575,31]
[322340006,1712956531137,-500.0,0.00046575,31]
[322340007,1712956531160,-500.0,0.00046575,31]
[322340008,1712956531184,-500.0,0.00046575,31]
[322340009,1712956531207,-1511.53,0.00046575,31]
[322340010,1712956531380,-500.0,0.00046575,31]
[322340011,1712956531408,-319.76258013,0.00046575,31]
[322340012,1712956531432,-500.0,0.00046575,31]
[322340013,1712956531455,-500.0,0.00046575,31]
[322340014,1712956531481,-500.0,0.00046575,31]
[322340015,1712956531506,-500.0,0.00046575,31]
[322340016,1712956531531,-500.0,0.00046575,31]
[322340017,1712956531556,-2105.21,0.00046575,31]
[322340018,1712956531580,-500.0,0.00046575,31]
[322340019,1712956531604,-500.0,0.00046575,31]
[322340020,1712956531629,-500.0,0.00046575,31]
[322340021,1712956531652,-500.0,0.00046575,31]
[322340022,1712956531677,-533.57,0.00046575,31]
[322340023,1712956531700,-500.0,0.00046575,31]
[322340024,1712956531723,-500.0,0.00046575,31]
[322340025,1712956531746,-1575.29,0.00046575,31]
[322340026,1712956531771,-500.0,0.00046575,31]
[322340027,1712956531794,-500.0,0.00046575,31]
[322340028,1712956531818,-3096.99,0.00046575,31]
[322340029,1712956531841,-500.0,0.00046575,31]
[322340030,1712956531865,-500.0,0.00046575,31]
[322340031,1712956531889,-500.0,0.00046575,31]
[322340032,1712956531913,-500.0,0.00046575,31]
[322340033,1712956531937,-500.0,0.00046575,31]
[322340034,1712956531961,-500.0,0.00046575,31]
[322340035,1712956531985,-500.0,0.00046575,31]
[322340036,1712956532009,-500.0,0.00046575,31]
[322340037,1712956532034,-500.0,0.00046575,31]
[322340038,1712956532059,-500.0,0.00046575,31]
[322340039,1712956532082,-632.18,0.00046575,31]
[322340040,1712956532106,-895.36,0.00046575,31]
[322340041,1712956532128,-500.0,0.00046575,31]
[322340042,1712956532151,-500.0,0.00046575,31]
[322340043,1712956532174,-500.0,0.00046575,31]
[322340044,1712956532198,-500.0,0.00046575,31]
[322340045,1712956532222,-941.44,0.00046575,31]
[322340046,1712956532246,-500.0,0.00046575,31]
[322340047,1712956532272,-641.76,0.00046575,31]
[322340048,1712956532296,-500.0,0.00046575,31]
[322340049,1712956532323,-500.0,0.00046575,31]
[322340050,1712956532346,-1111.5,0.00046575,31]
[322340051,1712956532371,-524.26063134,0.00046575,31]
[322340052,1712956532394,-774.82,0.00046575,31]
[322340053,1712956532419,-8132.3,0.00046575,31]
[322340054,1712956532442,-500.0,0.00046575,31]
[322340055,1712956532465,-500.0,0.00046575,31]
[322340056,1712956532488,-500.0,0.00046575,31]
[322340057,1712956532512,-500.0,0.00046575,31]
[322340058,1712956532537,-500.0,0.00046575,31]
[322340059,1712956532560,-500.0,0.00046575,31]
[322340060,1712956532585,-750.39,0.00046575,31]
[322340061,1712956532608,-500.0,0.00046575,31]
[322340062,1712956532631,-500.0,0.00046575,31]
[322340063,1712956532654,-500.0,0.00046575,31]
[322340064,1712956532677,-1572.03,0.00046575,31]
[322340065,1712956532700,-249.07455445,0.00046575,31]
[322340066,1712956532724,-500.0,0.00046575,31]
[322340067,1712956532748,-500.0,0.00046575,31]
[322340068,1712956532774,-3312.21,0.00046575,31]
[322340069,1712956532797,-500.0,0.00046575,31]
[322340070,1712956532823,-500.0,0.00046575,31]
[322340071,1712956532850,-500.0,0.00046575,31]
[322340072,1712956532874,-500.0,0.00046575,31]
[322340073,1712956532898,-1402.91,0.00046575,31]
[322340074,1712956532921,-500.0,0.00046575,31]
[322340075,1712956532945,-971.73,0.00046575,31]
[322340076,1712956532970,-533.79,0.00046575,31]
[322340077,1712956532994,-500.0,0.00046575,31]
[322340078,1712956533018,-500.0,0.00046575,31]
[322340079,1712956533041,-575.17,0.00046575,31]
[322340080,1712956533063,-500.0,0.00046575,31]
[322340081,1712956533086,-500.0,0.00046575,31]
[322340082,1712956533110,-500.0,0.00046575,31]
[322340083,1712956533133,-500.0,0.00046575,31]
[322340084,1712956533157,-500.0,0.00046575,31]
[322340085,1712956533180,-500.0,0.00046575,31]
[322340086,1712956533203,-770.12,0.00046575,31]
[322340087,1712956533228,-546.83,0.00046575,31]
[322340088,1712956533251,-500.0,0.00046575,31]
[322340089,1712956533277,-500.0,0.00046575,31]
[322340090,1712956533300,-500.0,0.00046575,31]
[322340091,1712956533323,-500.0,0.00046575,31]
[322340092,1712956533345,-500.0,0.00046575,31]
[322340093,1712956533368,-500.0,0.00046575,31]
[322340094,1712956533392,-500.0,0.00046575,31]
[322340095,1712956533416,-500.07453149,0.00046575,31]
[322340096,1712956533440,-500.0,0.00046575,31]
[322340097,1712956533465,-500.0,0.00046575,31]
[322340098,1712956533491,-500.0,0.00046575,31]
[322340099,1712956533515,-500.0,0.00046575,31]
[322340100,1712956533573,-634.09601658,0.00046575,31]
[322340101,1712956533602,-181.67282652,0.00046575,31]
[322340102,1712956533626,-500.0,0.00046575,31]
[322340103,1712956533649,-6667.16,0.00046575,31]
[322340104,1712956533673,-500.0,0.00046575,31]
[322340105,1712956533698,-500.0,0.00046575,31]
[322340106,1712956533724,-500.0,0.00046575,31]
[322340107,1712956533749,-500.0,0.00046575,31]
[322340108,1712956533775,-568.52689164,0.00046575,31]
[322340109,1712956533798,-500.0,0.00046575,31]
[322340110,1712956533821,-562.65,0.00046575,31]
[322340111,1712956533845,-500.0,0.00046575,31]
[322340112,1712956533874,-592.68,0.00046575,31]
[322340113,1712956533898,-2128.49,0.00046575,31]
[322340114,1712956533923,-576.79,0.00046575,31]
[322340115,1712956533947,-500.0,0.00046575,31]
[322340116,1712956534120,-500.0,0.00046575,31]
[322340117,1712956534145,-500.0,0.00046575,31]
[322340118,1712956534169,-2572.2,0.00046575,31]
[322340119,1712956534195,-500.0,0.00046575,31]
[322340120,1712956534220,-545.64,0.00046575,31]
[322340121,1712956534244,-500.0,0.00046575,31]
[322340122,1712956534269,-500.0,0.00046575,31]
[322340123,1712956534293,-500.0,0.00046575,31]
[322340124,1712956534317,-500.0,0.00046575,31]
[322340125,1712956534341,-500.0,0.00046575,31]
[322340126,1712956534366,-500.0,0.00046575,31]
[322340127,1712956534389,-500.0,0.00046575,31]
[322340128,1712956534413,-150.0,0.00046575,31]
[322340129,1712956534436,-500.0,0.00046575,31]
[322340130,1712956534460,-500.0,0.00046575,31]
[322340131,1712956534483,-526.49556102,0.00046575,31]
[322340132,1712956534509,-500.0,0.00046575,31]
[322340133,1712956534534,-500.0,0.00046575,31]
[322340134,1712956534558,-789.07,0.00046575,31]
[322340135,1712956534583,-500.0,0.00046575,31]
[322340136,1712956534608,-500.0,0.00046575,31]
[322340137,1712956534631,-940.58,0.00046575,31]
[322340138,1712956534655,-500.0,0.00046575,31]
[322340139,1712956534679,-500.0,0.00046575,31]
[322340140,1712956534702,-500.0,0.00046575,31]
[322340141,1712956534725,-1810.71,0.00046575,31]
[322340142,1712956534750,-500.0,0.00046575,31]
[322340143,1712956534775,-1488.79,0.00046575,31]
[322340144,1712956534798,-500.0,0.00046575,31]
[322340145,1712956534821,-500.0,0.00046575,31]
[322340146,1712956534844,-500.0,0.00046575,31]
[322340147,1712956534867,-500.0,0.00046575,31]
[322340148,1712956534891,-500.0,0.00046575,31]
[322340149,1712956534916,-3983.01,0.00046575,31]
[322340150,1712956534938,-500.0,0.00046575,31]
[322340151,1712956534961,-500.0,0.00046575,31]
[322340152,1712956534986,-500.0,0.00046575,31]
[322340153,1712956535009,-500.0,0.00046575,31]
[322340154,1712956535036,-627.13,0.00046575,31]
[322340155,1712956535060,-539.83,0.00046575,31]
[322340156,1712956535083,-500.0,0.00046575,31]
[322340157,1712956535107,-198.98,0.00046575,31]
[322340158,1712956535132,-1220.51,0.00046575,31]
[322340159,1712956535156,-500.0,0.00046575,31]
[322340160,1712956535180,-500.0,0.00046575,31]
[322340161,1712956535205,-500.0,0.00046575,31]
[322340162,1712956535229,-500.0,0.00046575,31]
[322340163,1712956535252,-500.0,0.00046575,31]
[322340164,1712956535278,-976.12,0.00046575,31]
[322340165,1712956535301,-500.0,0.00046575,31]
[322340166,1712956535325,-970.66,0.00046575,31]
[322340167,1712956535350,-1553.59,0.00046575,31]
[322340168,1712956535373,-500.0,0.00046575,31]
[322340169,1712956535400,-500.0,0.00046575,31]
[322340170,1712956535423,-500.0,0.00046575,31]
[322340171,1712956535448,-2065.52,0.00046575,31]
[322340172,1712956535472,-500.0,0.00046575,31]
[322340173,1712956535495,-593.27287719,0.00046575,31]
[322340174,1712956535519,-500.0,0.00046575,31]
[322340175,1712956535545,-500.0,0.00046575,31]
[322340176,1712956535569,-500.0,0.00046575,31]
[322340177,1712956535596,-1215.24,0.00046575,31]
[322340178,1712956535619,-500.0,0.00046575,31]
[322340179,1712956535645,-1686.35,0.00046575,31]
[322340180,1712956535671,-500.0,0.00046575,31]
[322340181,1712956535695,-500.0,0.00046575,31]
[322340182,1712956535720,-3280.57,0.00046575,31]
[322340183,1712956535746,-500.0,0.00046575,31]
[322340184,1712956535772,-500.0,0.00046575,31]
[322340185,1712956535797,-500.0,0.00046575,31]
[322340186,1712956535823,-500.0,0.00046575,31]
[322340187,1712956535848,-500.0,0.00046575,31]
[322340188,1712956535873,-500.0,0.00046575,31]
[322340189,1712956535898,-667.3,0.00046575,31]
[322340190,1712956535922,-500.0,0.00046575,31]
[322340191,1712956535946,-500.0,0.00046575,31]
[322340192,1712956535970,-438.24496403,0.00046575,31]
[322340193,1712956535993,-500.0,0.00046575,31]
[322340194,1712956536018,-500.0,0.00046575,31]
[322340195,1712956536041,-601.21,0.00046575,31]
[322340196,1712956536064,-500.0,0.00046575,31]
[322340197,1712956536088,-500.0,0.00046575,31]
[322340198,1712956536113,-500.0,0.00046575,31]
[322340199,1712956536139,-500.0,0.00046575,31]
[322340200,1712956536163,-846.97,0.00046575,31]
[322340201,1712956536187,-500.0,0.00046575,31]
[322340202,1712956536210,-500.0,0.00046575,31]
[322340203,1712956536234,-500.0,0.00046575,31]
[322340204,1712956536257,-500.0,0.00046575,31]
[322340205,1712956536282,-500.0,0.00046575,31]
[322340206,1712956536306,-500.0,0.00046575,31]
[322340207,1712956536331,-500.0,0.00046575,31]
[322340208,1712956536355,-500.0,0.00046575,31]
[322340209,1712956536379,-500.0,0.00046575,31]
[322340210,1712956536405,-500.0,0.00046575,31]
[322340211,1712956536435,-500.0,0.00046575,31]
[322340212,1712956536460,-500.0,0.00046575,31]
[322340213,1712956536484,-203.04275718,0.00046575,31]
[322340214,1712956536508,-500.0,0.00046575,31]
[322340215,1712956536533,-1495.44,0.00046575,31]
[322340216,1712956536558,-500.0,0.00046575,31]
[322340217,1712956536584,-935.04,0.00046575,31]
[322340218,1712956536609,-808.45,0.00046575,31]
[322340219,1712956536633,-500.0,0.00046575,31]
[322340220,1712956536659,-1846.15,0.00046575,31]
[322340221,1712956536839,-1507.31,0.00046575,31]
[322340222,1712956536863,-500.0,0.00046575,31]
[322340223,1712956536887,-1294.69,0.00046575,31]
[322340224,1712956536910,-500.0,0.00046575,31]
[322340225,1712956536933,-500.0,0.00046575,31]
[322340226,1712956536956,-500.0,0.00046575,31]
[322340227,1712956536979,-2247.71,0.00046575,31]
[322340228,1712956537003,-500.0,0.00046575,31]
[322340229,1712956537025,-500.0,0.00046575,31]
[322340230,1712956537048,-500.0,0.00046575,31]
[322340231,1712956537072,-896.47,0.00046575,31]
[322340232,1712956537096,-1472.35,0.00046575,31]
[322340233,1712956537119,-500.0,0.00046575,31]
[322340234,1712956537143,-580.22,0.00046575,31]
[322340235,1712956537167,-500.0,0.00046575,31]
[322340236,1712956537190,-2397.12,0.00046575,31]
[322340237,1712956537213,-500.0,0.00046575,31]
[322340238,1712956537236,-500.0,0.00046575,31]
[322340239,1712956537260,-1322.27,0.00046575,31]
[322340240,1712956537284,-880.42,0.00046575,31]
[322340241,1712956537308,-500.0,0.00046575,31]
[322340242,1712956537332,-500.0,0.00046575,31]
[322340243,1712956537356,-543.71,0.00046575,31]
[322340244,1712956537379,-500.0,0.00046575,31]
[322340245,1712956537408,-1600.11,0.00046575,31]
[322340246,1712956537432,-500.0,0.00046575,31]
[322340247,1712956537455,-500.0,0.00046575,31]
[322340248,1712956537480,-527.08,0.00046575,31]
[322340249,1712956537503,-500.0,0.00046575,31]
[322340250,1712956537527,-688.0,0.00046575,31]
[322340251,1712956537549,-500.0,0.00046575,31]
[322340252,1712956537573,-1007.86,0.00046575,31]
[322340253,1712956537596,-2299.87,0.00046575,31]
[322340254,1712956537618,-500.0,0.00046575,31]
[322340255,1712956537640,-500.0,0.00046575,31]
[322340256,1712956537663,-500.0,0.00046575,31]
[322340257,1712956537686,-500.0,0.00046575,31]
[322340258,1712956537709,-3212.13,0.00046575,31]
[322340259,1712956537732,-500.0,0.00046575,31]
[322340260,1712956538636,-530.51926718,0.00046575,31]
[322340261,1712956538660,-500.0,0.00046575,31]
[322340262,1712956538686,-500.0,0.00046575,31]
[322340263,1712956539213,-6534.43,0.00046575,31]
[322340264,1712956539240,-1236.5,0.00046575,31]
[322340265,1712956539268,-500.0,0.00046575,31]
[322340266,1712956539296,-500.0,0.00046575,31]
[322340267,1712956539321,-500.0,0.00046575,31]
[322340268,1712956539348,-880.9,0.00046575,31]
[322340269,1712956539371,-522.9,0.00046575,31]
[322340270,1712956539398,-500.0,0.00046575,31]
[322340271,1712956539424,-1933.1,0.00046575,31]
[322340272,1712956539450,-500.0,0.00046575,31]
[322340273,1712956539476,-500.0,0.00046575,31]
[322340274,1712956539501,-500.0,0.00046575,31]
[322340275,1712956539526,-500.0,0.00046575,31]
[322340276,1712956539550,-500.0,0.00046575,31]
[322340277,1712956539573,-500.0,0.00046575,31]
[322340278,1712956539596,-500.0,0.00046575,31]
[322340279,1712956539618,-500.0,0.00046575,31]
[322340280,1712956539641,-1985.47,0.00046575,31]
[322340281,1712956539663,-500.0,0.00046575,31]
[322340282,1712956539686,-1845.09,0.00046575,31]